Cogmind - Beta 16 @@@ ROGUE MODE // 2025.12.01 @ 23:05:34 Player: Lazz Result: Destroyed by G-47 Trooper with Particle Gun Performance ------------- Evolutions (3) 1500 Regions Visited (10) 2000 Robots Destroyed (87) 435 Value Destroyed (3045) 3045 Prototype IDs (1) 20 Alien Tech Used (0) 0 Bonus (974) 974 TOTAL SCORE: 7974 Bonus ------- High Alert Combat Kills 274 Entered Garrisons 200 Used RIF Installer 500 Cogmind --------- Core Integrity 0/700 Matter 242/300 Energy 98/100 System Corruption 5% Temperature Cool (9) Movement Core (50) Location -7/Lower Caves Parts ------- > --- POWER (1) -------- (None) > --- PROPULSION (4) --- (None) > --- UTILITY (5) ------ (None) > --- WEAPON (3) ------- Impact Mace > --- INVENTORY (5) ---- Light Nuclear Core Medium Matter Pod (100) Flak Cannon Peak State ------------ > --- POWER ------------ Light Nuclear Core > --- PROPULSION ------- Advanced Treads Medium Treads Armored Huge Wheel > --- UTILITY ---------- Advanced Heat Sink Humpback Improved Signal Interpreter Improved Weapon Shielding > --- WEAPON ----------- Plasma Cannon Flak Gun Railgun > --- INVENTORY -------- Light Nuclear Core Advanced Treads Advanced Treads Advanced Treads Advanced Treads Advanced Treads Advanced Treads Advanced Treads Improved Cooling System Medium Matter Pod Improved Sensor Array Improved Sensor Array Improved Signal Interpreter Terrain Scan Processor Matter Filter Particle Charger Particle Charger Particle Charger Particle Charger Improved Utility Shielding Makeshift System Restoration Module Minigun High-powered Shotgun High-powered Shotgun Makeshift Shrapnel Gun KE Penetrator Flak Cannon Flak Cannon Flak Cannon Shock Bomb Launcher Heavy Rocket Launcher Impact Mace Makeshift Axe Makeshift Axe [Rating: 57] Favorites ----------- Power Light Nuclear Core Engine Light Ion Engine Power Core Light Nuclear Core Propulsion Advanced Treads Treads Advanced Treads Leg Aluminum Leg Wheel Wheel Utility Improved Signal Interpreter Device Advanced Heat Sink Storage Humpback Processor Improved Signal Interpreter Protection Hardened Medium Armor Plating Weapon Railgun Energy Gun Field Laser Energy Cannon Plasma Cannon Ballistic Gun Railgun Ballistic Cannon Gauss Cannon Launcher Heavy Rocket Launcher Impact Weapon Impact Mace Slashing Weapon Makeshift Axe Build | -11 -10 -10 -10 -9 -8 -7 -7 -7 -7 -7 ------- Run | Yrd Mat Min Exi Min Mat Fac Gar Fac Low Low Slots Evolved 6 | . . . . . 4 2 . . . . Power . | . . . . . . . . . . . Propulsion 2 | . . . . . 2 . . . . . Utility 3 | . . . . . 1 2 . . . . Weapon 1 | . . . . . 1 . . . . . Parts Attached 76 | 8 1 . 4 . 14 24 23 1 1 . Power 9 | 1 . . . . 1 3 4 . . . Engine 2 | 1 . . . . 1 . . . . . Core 7 | . . . . . . 3 4 . . . Reactor . | . . . . . . . . . . . Propulsion 27 | 3 . . . . 7 9 8 . . . Treads 8 | . . . . . . . 8 . . . Leg 8 | . . . . . 3 5 . . . . Wheel 11 | 3 . . . . 4 4 . . . . Hover . | . . . . . . . . . . . Flight . | . . . . . . . . . . . Utility 18 | 2 . . 2 . 1 6 6 . 1 . Device 7 | 1 . . . . 1 2 2 . 1 . Storage 5 | 1 . . 2 . . 1 1 . . . Processor 2 | . . . . . . 2 . . . . Hackware . | . . . . . . . . . . . Protection 4 | . . . . . . 1 3 . . . Artifact . | . . . . . . . . . . . Weapon 22 | 2 1 . 2 . 5 6 5 1 . . Energy Gun 6 | 1 1 . 1 . 1 2 . . . . Energy Cannon 1 | . . . . . . . 1 . . . Ballistic Gun 9 | 1 . . 1 . 2 2 3 . . . Ballistic Cannon 2 | . . . . . . . 1 1 . . Launcher 1 | . . . . . . 1 . . . . Special Weapon . | . . . . . . . . . . . Impact Weapon 1 | . . . . . . 1 . . . . Slashing Weapon 2 | . . . . . 2 . . . . . Piercing Weapon . | . . . . . . . . . . . Special Melee Weapon . | . . . . . . . . . . . Unidentified Prototypes 1 | . . . . . . 1 . . . . Corrupted Parts 1 | . . . 1 . . . . . . . System Corruption 3 | . . . 3 . . . . . . . Parts Lost 49 | . 1 . . . 7 11 24 . . 6 Power 9 | . . . . . 1 3 4 . . 1 Propulsion 17 | . . . . . 4 4 6 . . 3 Utility 10 | . . . . . . 2 7 . . 1 Weapon 13 | . 1 . . . 2 2 7 . . 1 Highest Loss Streak 11 | . 1 . . . 4 6 11 . . 6 To Critical Strikes 1 | . . . . . . . . . . 1 Average Backups 19 | 4 5 5 7 15 25 32 25 5 5 4 Power 1 | . . . . 1 1 1 1 1 1 1 Propulsion 4 | 2 4 4 4 7 5 5 4 . . . Utility 7 | . 1 1 1 3 6 14 10 1 1 1 Weapon 7 | 1 . . 1 3 12 11 9 3 3 2 Tool/Special . | . . . . . . . . . . . Unused Backups 27 | 1 . . 1 . . 10 12 1 . 2 Power 3 | 1 . . . . . . 1 . . 1 Propulsion 9 | . . . 1 . . 8 . . . . Utility 8 | . . . . . . . 8 . . . Weapon 7 | . . . . . . 2 3 1 . 1 Tool/Special . | . . . . . . . . . . . Average Slot Usage (%) 89 | . 100 100 98 85 82 85 87 100 100 58 Engine 4 | . 14 14 14 14 8 1 . . . . Core 4 | . . . . . . 5 6 7 7 3 Treads 10 | . . . . . . . 21 30 30 14 Leg 2 | . . . . . 4 9 . . . . Wheel 14 | . 28 28 28 28 29 17 3 . . . Device 9 | . 14 14 12 . 8 7 8 7 12 9 Storage 7 | . 14 14 14 14 9 7 6 7 2 . Processor 5 | . . . . . . 9 7 7 7 4 Protection 4 | . . . . . . 2 6 15 15 8 Energy Gun 6 | . 14 14 14 14 10 10 . . . . Energy Cannon 1 | . . . . . . . 5 . . . Ballistic Gun 12 | . 14 14 14 14 10 9 13 15 15 9 Ballistic Cannon 1 | . . . . . . . . 7 7 4 Peak Build Rating 57 | 9 9 9 16 15 28 46 57 48 51 51 Average Rating 35 | 4 8 9 12 14 24 36 50 47 49 30 On Entrance 24 | . 9 9 9 14 15 25 46 47 48 51 Avg Prop Armor Cover (%) 8 | . . . . . 13 6 12 . . . Naked Turns 8 | . . . . . . . . . . 8 Heaviest Build 232 | 12 12 12 210 210 216 221 232 36 37 37 Greatest Support 88 | 26 20 20 20 20 58 58 88 88 88 88 Greatest Overweight (x) 21 | . . . 10 10 21 21 8 . . . Average Overweight (x) 2 | . . . . 10 4 5 3 . . . Largest Inventory Capacity 35 | 8 8 8 35 35 35 35 35 5 5 5 Average Capacity 23 | 7 8 8 11 35 35 35 28 5 5 5 Most Carried 35 | 7 6 5 11 18 31 35 35 5 5 5 Average Carried 19 | 4 5 5 7 16 27 32 25 4 5 4 Final Capacity 35 | 8 8 8 35 35 35 35 5 5 5 5 Final Carried 35 | 6 5 5 11 18 28 35 5 5 5 3 Class Distribution -------------------- 21% | Tank 17% | Hauler-Mutant 16% | Hauler-Skirmisher 13% | Mutant 12% | Hauler-Tank 12% | Hauler-Gunner 5% | Scavenger-Mutant Dominant Class ---------------- Mutant | -10/Materials Mutant | -10/Mines Mutant | -10/Exiles Hauler-Mutant | -9/Mines Hauler-Mutant | -8/Materials Hauler-Skirmisher | -7/Factory Hauler-Tank | -7/Garrison Tank | -7/Factory Tank | -7/Lower Caves Mutant | -7/Lower Caves Resources | -11 -10 -10 -10 -9 -8 -7 -7 -7 -7 -7 ----------- Run | Yrd Mat Min Exi Min Mat Fac Gar Fac Low Low Matter Collected 2570 | 393 13 . 87 60 339 412 965 15 272 14 Remotely . | . . . . . . . . . . . Salvage Created 3385 | 183 101 . 229 146 816 587 1032 15 139 137 Parts 171 | 9 9 . 10 8 33 32 57 1 5 7 Haulers Intercepted . | . . . . . . . . . . . Recyclers Shooed 6 | 1 . . . . 5 . . . . . Parts Field Recycled . | . . . . . . . . . . . Retrieved Matter . | . . . . . . . . . . . Parts Self-Destructed 11 | . . . . . . . . . 4 7 Prevented . | . . . . . . . . . . . Parts Restored . | . . . . . . . . . . . Kills | -11 -10 -10 -10 -9 -8 -7 -7 -7 -7 -7 ------- Run | Yrd Mat Min Exi Min Mat Fac Gar Fac Low Low Combat Hostiles Destroyed 71 | . 2 . . 3 10 16 32 . 4 4 Guns 45 | . 2 . . 3 10 11 14 . 3 2 Cannons 12 | . . . . . . . 9 . 1 2 AOE 14 | . . . . . . 5 9 . . . Classes Destroyed 17 | 3 1 . . 1 3 4 3 1 1 . Worker 3 | 2 . . . . . 1 . . . . Builder 1 | . . . . . . 1 . . . . Tunneler 2 | 2 . . . . . . . . . . Recycler 6 | 1 . . . . 5 . . . . . Mechanic 1 | . . . . . . 1 . . . . Operator 1 | . . . . . . . . 1 . . Watcher 2 | . . . . . 1 1 . . . . Swarmer 23 | . . . . . 2 4 11 . 4 2 Cutter 2 | . . . . . . . 2 . . . Grunt 28 | . 2 . . 2 4 8 11 . . 1 Brawler 1 | . . . . 1 . . . . . . Duelist 1 | . . . . . . . 1 . . . Sentry 10 | . . . . . 4 1 4 . . 1 Specialist 1 | . . . . . . . 1 . . . Hunter 1 | . . . . . . 1 . . . . Programmer 4 | . . . . . . 2 2 . . . Samaritan 2 | . . . . . . . . . 2 . Best Kill Streak 7 | 5 1 . . 2 4 4 7 1 3 4 Combat Bots Only 7 | . 1 . . 2 3 4 7 . 3 4 Max Kills in Single Turn 4 | 2 1 . . 1 2 3 4 1 2 1 Gunslinging 1 | . . . . . 1 . . . . . Exploded 4 | . . . . . . 3 4 . . . Melee . | . . . . . . . . . . . Uniques/NPCs Destroyed . | . . . . . . . . . . . Combat | -11 -10 -10 -10 -9 -8 -7 -7 -7 -7 -7 -------- Run | Yrd Mat Min Exi Min Mat Fac Gar Fac Low Low Hostile Shots Fired 664 | . 18 . . 6 73 179 258 . 27 103 Missed 195 | . 8 . . 1 18 50 69 . 11 38 Hits 469 | . 10 . . 5 55 129 189 . 16 65 Melee 6 | . . . . 1 . . 5 . . . Projectile 463 | . 10 . . 4 55 129 184 . 16 65 AOE 2 | . . . . . . . 2 . . . Critical Strikes 12 | . . . . . 4 1 3 . . 4 Part Disruptions 2 | . . . . . . 2 . . . . Damage Taken 6379 | 36 133 . . 64 769 1582 2509 . 247 1039 Core 790 | . 28 . . 10 44 147 278 . . 283 Absorbed by Shields 22 | . . . . . . . 22 . . . Redirected to Shielding 153 | . . . . . . . 101 . 9 43 Core Remaining (%) 92 | 100 . . . 84 92 . . . . . Volleys Fired 224 | 18 10 . 19 9 42 45 57 1 14 9 Largest 3 | 2 2 . 2 2 3 3 3 3 3 3 Hottest 151 | 60 60 . 78 78 141 151 148 108 108 110 Shots Fired 564 | 19 19 . 38 18 101 132 163 3 44 27 Gun 473 | 19 19 . 38 18 101 127 104 2 28 17 Cannon 77 | . . . . . . . 50 1 16 10 Launcher 14 | . . . . . . 5 9 . . . Special . | . . . . . . . . . . . Kinetic 353 | 18 10 . 19 9 53 63 107 3 44 27 Thermal 164 | . . . 13 . 40 64 47 . . . Explosive 14 | . . . . . . 5 9 . . . Electromagnetic 33 | 1 9 . 6 9 8 . . . . . Robot Hit Streak 22 | 12 6 . 22 6 12 16 9 3 11 4 Robot Miss Streak 11 | 1 2 . 1 3 7 4 11 . 5 3 Penetration Max 1 | . . . . . . . . . . 1 Secondary Targets 7 | . 1 . . . 3 3 . . . . Max Gunslinging Chain 1 | . 1 . . . 1 1 . . . . Shots Hit Robots 352 | 15 13 . 28 12 56 92 91 2 30 13 Core Hits 185 | 7 5 . 9 4 28 39 75 1 8 9 Critical Kills 2 | . . . . 1 1 . . . . . Critical Parts Destroyed . | . . . . . . . . . . . Critical Strikes 10 | . . . . 1 4 2 . . . 3 Burn 4 | . . . . . 2 2 . . . . Destroy 2 | . . . . 1 1 . . . . . Blast 3 | . . . . . . . . . . 3 Corrupt 1 | . . . . . 1 . . . . . Melee Attacks 13 | . . . . . 11 . . . . 2 Impact 2 | . . . . . . . . . . 2 Slashing 11 | . . . . . 11 . . . . . Piercing . | . . . . . . . . . . . Sneak Attacks . | . . . . . . . . . . . Combat Hostiles . | . . . . . . . . . . . Follow-up Attacks . | . . . . . . . . . . . Damage Inflicted 8271 | 187 132 . 391 224 1075 2016 2978 49 784 435 Guns 5623 | 123 132 . 345 224 1075 1529 1380 49 534 232 Cannons 1197 | . . . . . . . 744 . 250 203 Explosions 1451 | 64 . . 46 . . 487 854 . . . Melee . | . . . . . . . . . . . Ramming . | . . . . . . . . . . . Kinetic 4488 | 111 64 . 131 139 651 726 1398 49 784 435 Thermal 2154 | 64 . . 205 . 356 803 726 . . . Explosive 1341 | . . . . . . 487 854 . . . Electromagnetic 288 | 12 68 . 55 85 68 . . . . . Impact . | . . . . . . . . . . . Slashing . | . . . . . . . . . . . Piercing . | . . . . . . . . . . . Highest Corruption 5 | . . . 3 3 1 3 5 5 5 5 Average Corruption 3 | . . . 3 3 1 2 4 5 5 5 Corruption Purged . | . . . . . . . . . . . Corruption Blocked . | . . . . . . . . . . . Effects 102 | . . . 5 3 5 18 41 3 23 4 Message Errors 26 | . . . 2 . 2 5 12 1 3 1 Matter Fused 20 | . . . . . . 3 9 1 7 . Heat Flow Errors 9 | . . . 2 2 . . 1 . 4 . Energy Discharges 16 | . . . . 1 1 4 7 1 2 . Parts Rejected 1 | . . . . . . . 1 . . . Parts Fused 2 | . . . 1 . . . . . 1 . Data Loss (minor) 8 | . . . . . . 2 2 . 2 2 Data Loss (major) 4 | . . . . . 1 1 . . 1 1 Misfires 6 | . . . . . . . 4 . 2 . Alerts 4 | . . . . . . 2 1 . 1 . Weapon Failures 6 | . . . . . 1 1 4 . . . Overload Shots . | . . . . . . . . . . . Overflow Damage 97 | . . . . . . 18 21 . 58 . Projectiles 58 | . . . . . . . . . 58 . Explosions 39 | . . . . . . 18 21 . . . Melee . | . . . . . . . . . . . Knockbacks 4 | . . . . . . . . . 1 3 Impact . | . . . . . . . . . . . Kinetic 4 | . . . . . . . . . 1 3 Secondary . | . . . . . . . . . . . Self-Inflicted Damage 203 | 36 . . . . . . 167 . . . Shots 6 | 1 . . . . . . 5 . . . Rammed . | . . . . . . . . . . . Targets Rammed . | . . . . . . . . . . . Kicked . | . . . . . . . . . . . Crushed . | . . . . . . . . . . . Highest Temperature 387 | 32 79 . 275 200 387 350 300 . 214 28 Average Temperature 93 | 22 36 . 66 87 111 142 59 . 98 12 Received Heat Transfer 1917 | . 72 . . 24 369 477 696 . 36 243 Effects 10 | . . . 1 . 3 6 . . . . Shutdowns 1 | . . . . . 1 . . . . . Energy Bleed 3 | . . . 1 . 2 . . . . . Interference 6 | . . . . . . 6 . . . . Siege Activations . | . . . . . . . . . . . Martial Activations . | . . . . . . . . . . . Shielding Activations . | . . . . . . . . . . . Robots Disrupted . | . . . . . . . . . . . Combat Hostiles . | . . . . . . . . . . . Robots Corrupted . | . . . . . . . . . . . Combat Hostiles . | . . . . . . . . . . . Parts Fried . | . . . . . . . . . . . Impact Corruptions . | . . . . . . . . . . . Robots Melted . | . . . . . . . . . . . Combat Hostiles . | . . . . . . . . . . . Parts Melted 4 | . . . . . 2 2 . . . . Heat Transferred 4719 | 50 . . 494 . 925 1850 1400 . . . Parts Sabotaged . | . . . . . . . . . . . Parts Stolen . | . . . . . . . . . . . Parts Stripped . | . . . . . . . . . . . Power Chain Reactions 2 | 1 . . 1 . . . . . . . Alert | -11 -10 -10 -10 -9 -8 -7 -7 -7 -7 -7 ------- Run | Yrd Mat Min Exi Min Mat Fac Gar Fac Low Low Maximum Alert Level 3 | . . . . . . . 3 2 . . Low Security (%) 64 | 100 100 100 . 100 100 100 5 . . . Level 1 8 | . . . . . . . 21 20 . . Level 2 18 | . . . . . . . 47 80 . . Level 3 8 | . . . . . . . 24 . . . Level 4 . | . . . . . . . . . . . Level 5 . | . . . . . . . . . . . High Security . | . . . . . . . . . . . Max Security . | . . . . . . . . . . . Peak Influence 811 | 10 30 . . 50 78 190 811 425 . . Initial 425 | . 6 . . . . 18 131 425 . . Average 216 | 3 6 . . 8 40 37 536 407 . . Influence Increases 2202 | 25 55 . 10 72 335 490 920 5 105 185 Destroy 0b10 Robot/C 1420 | . 40 . . 60 200 320 640 . 80 80 Destroy 0b10 Robot/NC 90 | 25 . . 10 . 30 20 . 5 . . Destroy Leader 194 | . 10 . . 10 52 72 40 . 10 . Allied During Kill 2 | . . . . 2 . . . . . . Successful Hack 68 | . 5 . . . . 33 30 . . . Disable Machine 60 | . . . . . 30 15 15 . . . Anti-Garrison Action 100 | . . . . . . . 100 . . . Destroy Structure 103 | . . . . . 8 30 65 . . . Lose Combat Pursuer 165 | . . . . . 15 . 30 . 15 105 Influence Decreases 2077 | 15 65 . 10 72 292 345 297 436 485 60 Entered New Map 613 | . 4 . . . . 25 57 386 141 . Time Decay 1058 | 15 51 . 10 50 222 286 . 50 344 30 Lost Part 384 | . 10 . . . 70 34 240 . . 30 Lost Ally 22 | . . . . 22 . . . . . . Squads Dispatched 8 | . . . . . 1 6 . . . 1 Investigation 4 | . . . . . 1 3 . . . . Extermination 2 | . . . . . . 2 . . . . Reinforcement 1 | . . . . . . 1 . . . . Assault 1 | . . . . . . . . . . 1 Garrison . | . . . . . . . . . . . Intercept . | . . . . . . . . . . . Searches Triggered . | . . . . . . . . . . . Construction Impeded . | . . . . . . . . . . . Haulers Reinforced . | . . . . . . . . . . . Active Scanning Responses . | . . . . . . . . . . . Cargo Convoy Interrupts . | . . . . . . . . . . . Stealth | -11 -10 -10 -10 -9 -8 -7 -7 -7 -7 -7 --------- Run | Yrd Mat Min Exi Min Mat Fac Gar Fac Low Low Distress Signals 3 | . . . . . 2 1 . . . . Communications Jammed . | . . . . . . . . . . . Distress Signals . | . . . . . . . . . . . Times Spotted 106 | . 2 . . 2 14 22 37 1 8 20 Peak Tracking Total 11 | . 2 . . 2 4 5 6 . 4 11 Tactical Retreats 5 | . . . . . 1 . 2 . 1 1 Traps | -11 -10 -10 -10 -9 -8 -7 -7 -7 -7 -7 ------- Run | Yrd Mat Min Exi Min Mat Fac Gar Fac Low Low Traps Triggered 4 | . . . . . . 2 2 . . . Indirectly . | . . . . . . . . . . . Trap Hack Attempts . | . . . . . . . . . . . Triggered . | . . . . . . . . . . . Disarmed . | . . . . . . . . . . . Reprogrammed . | . . . . . . . . . . . Reused . | . . . . . . . . . . . Traps Extracted . | . . . . . . . . . . . Installed . | . . . . . . . . . . . Triggered . | . . . . . . . . . . . Machines | -11 -10 -10 -10 -9 -8 -7 -7 -7 -7 -7 ---------- Run | Yrd Mat Min Exi Min Mat Fac Gar Fac Low Low Machines Disabled 7 | . . . . . 2 1 3 . . 1 Max in Single Turn 1 | . . . . . 1 1 1 . . 1 Machines Repaired . | . . . . . . . . . . . Machines Dismantled . | . . . . . . . . . . . Machines Sabotaged . | . . . . . . . . . . . Overloaded Fab Kills . | . . . . . . . . . . . Hacking | -11 -10 -10 -10 -9 -8 -7 -7 -7 -7 -7 --------- Run | Yrd Mat Min Exi Min Mat Fac Gar Fac Low Low Machines Accessed 13 | . 1 . 4 . 2 4 2 . . . Terminals 7 | . 1 . . . 1 3 2 . . . Fabricators . | . . . . . . . . . . . Repair Stations . | . . . . . . . . . . . Recycling Units . | . . . . . . . . . . . Scanalyzers 1 | . . . . . 1 . . . . . Garrison Access 1 | . . . . . . 1 . . . . Total Hacks 63 | . 5 . 39 . 6 10 3 . . . Successful 49 | . 2 . 39 . 3 3 2 . . . Failed 14 | . 3 . . . 3 7 1 . . . Catastrophic 3 | . . . . . . 3 . . . . Database Lockouts . | . . . . . . . . . . . Manual 4 | . 4 . . . . . . . . . Terminals 18 | . 5 . . . 3 7 3 . . . Fabricators . | . . . . . . . . . . . Repair Stations . | . . . . . . . . . . . Recycling Units . | . . . . . . . . . . . Scanalyzers 3 | . . . . . 3 . . . . . Garrison Access 3 | . . . . . . 3 . . . . Terminal Hacks 46 | . 2 . 39 . 1 2 2 . . . Record 39 | . . . 39 . . . . . . . Open DSF 1 | . . . . . . 1 . . . . Emergency Access Points 1 | . . . . . . . 1 . . . Terminal Index 1 | . 1 . . . . . . . . . Locate Traps 1 | . . . . . 1 . . . . . Zone Layout 2 | . 1 . . . . 1 . . . . Security Stations 1 | . . . . . . . 1 . . . Fabricator Hacks . | . . . . . . . . . . . Repair Station Hacks . | . . . . . . . . . . . Recycling Unit Hacks . | . . . . . . . . . . . Scanalyzer 2 | . . . . . 2 . . . . . Retrieve Study 2 | . . . . . 2 . . . . . Garrison Access Hacks 1 | . . . . . . 1 . . . . Unlock Access 1 | . . . . . . 1 . . . . Unauthorized Hacks . | . . . . . . . . . . . Terminals . | . . . . . . . . . . . Fabricators . | . . . . . . . . . . . Repair Stations . | . . . . . . . . . . . Recycling Units . | . . . . . . . . . . . Scanalyzers . | . . . . . . . . . . . Garrison Access . | . . . . . . . . . . . Data Cores Recovered 1 | . . . . . . . . 1 . . Used . | . . . . . . . . . . . Hacking Detections 7 | . 1 . . . 2 3 1 . . . Full Trace Events 4 | . . . . . 1 3 . . . . Feedback Events 1 | . . . . . 1 . . . . . Corruption 1 | . . . . . 1 . . . . . Feedback Blocked . | . . . . . . . . . . . Robot Schematics Acquired . | . . . . . . . . . . . Robots Built . | . . . . . . . . . . . Authchips . | . . . . . . . . . . . Time . | . . . . . . . . . . . Total Robot Build Rating . | . . . . . . . . . . . Part Schematics Acquired . | . . . . . . . . . . . Parts Built . | . . . . . . . . . . . Authchips . | . . . . . . . . . . . Time . | . . . . . . . . . . . Total Part Build Rating . | . . . . . . . . . . . Part Studies Acquired 2 | . . . . . 2 . . . . . Parts Repaired . | . . . . . . . . . . . Time . | . . . . . . . . . . . Parts Recycled . | . . . . . . . . . . . Recycled Matter . | . . . . . . . . . . . Retrieved Matter . | . . . . . . . . . . . Retrieved Components . | . . . . . . . . . . . Parts Scanalyzed . | . . . . . . . . . . . Part Schematics Acquired . | . . . . . . . . . . . Parts Damaged . | . . . . . . . . . . . Bothacking | -11 -10 -10 -10 -9 -8 -7 -7 -7 -7 -7 ------------ Run | Yrd Mat Min Exi Min Mat Fac Gar Fac Low Low Used RIF Installer 1 | . . . . . . . 1 . . . Robots Hacked . | . . . . . . . . . . . Non-combat . | . . . . . . . . . . . Combat . | . . . . . . . . . . . Robot Hacks Applied . | . . . . . . . . . . . Relay Couplers Released . | . . . . . . . . . . . Fabnet Peak Effective % . | . . . . . . . . . . . Robots Rewired 2 | . . . 2 . . . . . . . Allies Hacked . | . . . . . . . . . . . Hacks Repelled . | . . . . . . . . . . . Allies | -11 -10 -10 -10 -9 -8 -7 -7 -7 -7 -7 -------- Run | Yrd Mat Min Exi Min Mat Fac Gar Fac Low Low Total Allies 4 | . . 2 2 . . . . . . . Largest Group 2 | . . 2 2 1 . . . . . . Highest-Rated Group 42 | . . 42 42 8 . . . . . . Highest-Rated Ally 31 | . . 31 31 8 . . . . . . Total Orders . | . . . . . . . . . . . Ally Attacks 6 | . . . . 6 . . . . . . Total Damage 31 | . . . . 31 . . . . . . Kills . | . . . . . . . . . . . Allies Corrupted . | . . . . . . . . . . . Allies Melted . | . . . . . . . . . . . Intel | -11 -10 -10 -10 -9 -8 -7 -7 -7 -7 -7 ------- Run | Yrd Mat Min Exi Min Mat Fac Gar Fac Low Low Active Infowar (turns) 2563 | 21 166 109 692 . 531 1017 27 . . . Sensors 1575 | . . . . . 531 1017 27 . . . Terrain 988 | 21 166 109 692 . . . . . . . Robot Analysis Total . | . . . . . . . . . . . Derelict Logs Recovered 4 | . . 1 . 2 . . . . 1 . Drone Launches . | . . . . . . . . . . . Drone Recoveries . | . . . . . . . . . . . Exploration | -11 -10 -10 -10 -9 -8 -7 -7 -7 -7 -7 ------------- Run | Yrd Mat Min Exi Min Mat Fac Gar Fac Low Low Turns Passed 6283 | 118 166 109 789 322 580 1538 1589 100 868 104 Spaces Moved 3342 | 74 144 100 647 126 248 651 629 65 567 91 Core 76 | 8 . . . . . . . . . 68 Treads 1026 | . . . . . . . 371 65 567 23 Legs 32 | . . . . . . 32 . . . . Wheels 2208 | 66 144 100 647 126 248 619 258 . . . Hover . | . . . . . . . . . . . Flight . | . . . . . . . . . . . Fastest Speed 50 | 50 80 80 80 230 130 130 140 145 145 50 Average Speed 151 | 83 80 80 94 230 149 184 213 145 145 74 Slowest Speed 1240 | 100 80 80 230 230 385 1240 305 145 145 145 Overloaded Moves . | . . . . . . . . . . . Propulsion Burnouts . | . . . . . . . . . . . Robots Hopped . | . . . . . . . . . . . Potential Cave-ins 3 | . . . . . 3 . . . . . Cave-ins Triggered . | . . . . . . . . . . . Exploration Rate (%) 34 | 4 31 11 93 34 27 19 64 2 69 24 Regions Visited 10 Branch Regions 5 Pre-discovered Areas 2 | . . . 1 . . . . . 1 . Known Exits Taken 4 | . . . . . 1 1 . 1 1 . Unknown Exits Taken 5 | 1 1 1 1 1 . . . . . . Scrap Searched 1 | . . . . 1 . . . . . . Spaces Dug 13 | . . . . . 11 . . . . 2 Terrain Destroyed 152 | 7 . . 6 . 12 27 81 . 11 8 Melee 13 | . . . . . 11 . . . . 2 Projectile 28 | . . . 2 . 1 . 8 . 11 6 AOE 111 | 7 . . 4 . . 27 73 . . . Terrain Rammed . | . . . . . . . . . . . Walls Destroyed . | . . . . . . . . . . . Machines Disabled . | . . . . . . . . . . . Actions | -11 -10 -10 -10 -9 -8 -7 -7 -7 -7 -7 --------- Run | Yrd Mat Min Exi Min Mat Fac Gar Fac Low Low Total 4112 | 114 177 128 790 141 354 903 751 69 581 104 Wait 263 | . 23 29 81 . 18 101 11 . . . Move 3333 | 73 143 99 646 125 247 651 628 64 566 91 Hop . | . . . . . . . . . . . Pick Up 109 | 14 . . 12 7 20 42 13 1 . . Fast Attach 6 | . . . 1 . . 2 3 . . . Attach 54 | 7 1 . . . 10 18 16 . . 2 Detach 1 | . . . . . . 1 . . . . Swap 29 | 1 . . 3 . 6 9 8 1 1 . Drop 41 | 1 . . 5 . . 26 7 2 . . Fire 224 | 18 10 . 19 9 42 45 57 1 14 9 Melee 13 | . . . . . 11 . . . . 2 Ram . | . . . . . . . . . . . Kick . | . . . . . . . . . . . Crush . | . . . . . . . . . . . Escape Stasis 16 | . . . . . . 8 8 . . . Rewire 23 | . . . 23 . . . . . . . Trap . | . . . . . . . . . . . Miscellaneous . | . . . . . . . . . . . Route ------- -11/Scrapyard -10/Materials -10/Mines -10/Exiles (discovered 2 exits: [*Min x2]) -9/Mines -8/Materials (discovered 3 exits: *Fac x2 / Sto) -7/Factory -7/Garrison (discovered 3 exits: *Fac x3) -7/Factory -7/Lower Caves -7/Lower Caves History --------- Turn | Location | Event 4 | -11/Scrapyard | Discovered new exit (range 15) 119 | -11/Scrapyard | Entered Materials 241 | -10/Materials | Discovered new exit (range 6) 285 | -10/Materials | Entered Mines 298 | -10/Mines | Learned 8 Materials zone layouts 316 | -10/Mines | Build established: Mutant 370 | -10/Mines | Deemed a non-threat by the Exiles lab entrance 370 | -10/Mines | Discovered new exit (range 5) 394 | -10/Mines | Entered Exiles 394 | -10/Exiles | Found Exiles lab destroyed 394 | -10/Exiles | Accompanied by 2 allies 407 | -10/Exiles | Discovered new exit (range 15) 424 | -10/Exiles | Led the pair of lost Derelicts to a safe place 1027 | -10/Exiles | Learned location of Zion (-7) 1086 | -10/Exiles | Build established: Scavenger-Mutant 1150 | -10/Exiles | Discovered new exit (range 14) 1183 | -10/Exiles | Entered Mines 1183 | -9/Mines | Accompanied by 2 allies 1299 | -9/Mines | A weapon hastily lodged in a ceiling crevice suddenly fell to the ground 1353 | -9/Mines | Learned location of 1 exit from Materials 1365 | -9/Mines | Learned 2 Materials zone layouts 1393 | -9/Mines | Build established: Hauler-Mutant 1475 | -9/Mines | Discovered new exit (range 11) 1505 | -9/Mines | Entered Materials 1505 | -8/Materials | Evolved 4 slots: Propulsion x2, Utility x1, Weapon x1 1506 | -8/Materials | Identified exit to Factory 1507 | -8/Materials | Identified exit to Storage 1904 | -8/Materials | Lost 4 parts (3n1w) 2085 | -8/Materials | Entered Factory 2085 | -7/Factory | Evolved 2 slots: Utility x2 2680 | -7/Factory | Build established: Hauler-Skirmisher 2785 | -7/Factory | Lost 6 parts (1p3n1u1w) 3037 | -7/Factory | Build established: Hauler-Gunner 3438 | -7/Factory | Build established: Hauler-Skirmisher 3623 | -7/Factory | Identified exit to Garrison 3623 | -7/Factory | Entered Garrison 3697 | -7/Garrison | Triggered checkpoint 3738 | -7/Garrison | Lost 3 parts (1p2n) 3762 | -7/Garrison | Learned Factory security intel 3947 | -7/Garrison | Build established: Hauler-Tank 4007 | -7/Garrison | Triggered checkpoint 4058 | -7/Garrison | Triggered checkpoint 4092 | -7/Garrison | Destroyed 7 combat bots 4221 | -7/Garrison | Discovered new exit (range 9) 4269 | -7/Garrison | Triggered checkpoint 4321 | -7/Garrison | Lost 7 parts (1p3n1u2w) 4349 | -7/Garrison | Core integrity fell below 50% 4614 | -7/Garrison | Identified exit to Factory 4793 | -7/Garrison | Discovered exit to Factory (range 9) 4859 | -7/Garrison | Triggered checkpoint 4898 | -7/Garrison | Lost 11 parts (1p1n5u4w) 5009 | -7/Garrison | Triggered checkpoint 5153 | -7/Garrison | Installed Relay Interface Framework 5200 | -7/Garrison | Discovered exit to Factory (range 8) 5212 | -7/Garrison | Entered Factory 5298 | -7/Factory | Discovered new exit (range 10) 5310 | -7/Factory | Identified exit to Lower Caves 5312 | -7/Factory | Entered Lower Caves 5344 | -7/Lower Caves | Build established: Tank 6156 | -7/Lower Caves | Discovered new exit (range 14) 6179 | -7/Lower Caves | Identified exit to Lower Caves 6180 | -7/Lower Caves | Entered another Lower Caves area 6209 | -7/Lower Caves | Attracted the attention of an 0b10 outpost 6244 | -7/Lower Caves | Released all parts (8) 6246 | -7/Lower Caves | Core integrity fell below 20% 6271 | -7/Lower Caves | Lost 6 parts (1p3n1u1w) 6284 | -7/Lower Caves | Destroyed by G-47 Trooper with Particle Gun Last Messages --------------- 06244_ Imp. Medium Armor Plating fries itself beyond repair. 06244_ Released Imp. Utility Shielding. 06244_ Released Adv. Heat Sink. 06244_ Released Imp. Signal Interpreter. 06244_ Released KE Penetrator. 06244_ Released Adv. Treads. 06244_ Released Gauss Cannon. 06244_ Released Matter Filter. 06244_ Released Flak Cannon. 06246_ Acquired 8 matter. 06246_ Acquired 6 matter. 06246_ Critical hit (Burn: +37). 06247_ Imp. Treads fries itself beyond repair. 06248_ M-28 Smith repairs B-48 Gladiator. 06249_ Adv. Heat Sink fries itself beyond repair. 06258_ System corrupted: Substantial component data lost. 06277_ System corrupted: Component data lost. Map ----- +----------------------------------------------------+ | | | | | | | ?????????????????????????????????????????????????? | | ?????????????????????????????????????????????????? | | ?????????????????????????????????????????????????? | | ?????????????????????????????????????????????????? | | ?????????????????????????????????????????????????? | | ?????????????????????????????????????????????????? | | ?????????????????????????????????????????????????? | | ?????????????????????????????????????????????????? | | ?????????????????????????????????????????????????? | | ?????????????????????????????????????????????????? | | ?????????????????????????????????????????????????? | | ?????????????????????????????????????????????????? | | ?????????????????????????????????????????????????? | | ?????????????????????????????????????????????????? | | ?????????????????????????????????????????????????? | | ???????????????????????##????????????????????????? | | ??????????????????????## ????????????????????????? | | ???????????????????#### ????????????????????????? | | ??????????????????## ##??????????????????????? | | ?????????????###### #??????????????????????? | | ????????????## g #???????#??? ??????????? | | ????????????# gg g #?????? #?? #?????????? | | ?????????????# @#????? ## #????????? | | ???????????????# ####?# ????????? | | ??????????????## ### ## ???????? | | ??????????????# ??### ???????? | | ????????????????? #???## #???????? | | ??????????????????# #??## ## #?????????? | | ??????????????????# #?# ## #?????????? | | ?????????????????## ## ## #?????????? | | ????????????????## ???????? | | ????????????????# ???????? | | ???????????????## s ####????????? | | ???????????????# ## s #??????? ??? | | ??????????????## ### ## ##????? ?? | | ?????????????## ## ##?# ##???? #? | | ?????????????# ##?## ##????# # | | ?????????????# ####?## ####??# | | ?????????????# ##???# ##?# | | ?????????????# ##### #?# | | ?????????????# #?# | | ?????????????# ### ## #??# | | ?????????????# ##??# ### #????# | | ?????????????# ????# ??# #### ## ######### | | ?????????????# ?????# ??# #??## ### #?## ### | | ?????????????#??????## ??# #???#####?# ### ## | | ?????????????????????###??# #?????????# # | +----------------------------------------------------+ Best States ------------- Heat Dissipation 61 Energy Generation 15 Energy Capacity 250 Matter Stores 400 Matter Capacity 400 Sight Range 16 Robot Scan Range 15 Terrain Scan Range 16 Terrain Scan Density 10 Armor Coverage 225 Utility Shielding 66 Weapon Shielding 66 Evasion (%) 50 Recoil Reduction 4 Matter Filtering 30 Item Schematics ----------------- None Robot Schematics ------------------ None Fabricated ------------ Nothing Repaired ---------- Nothing Studied --------- Com. Wheel | -8/Materials | Hacked Wheel | -8/Materials | Hacked Alien Tech Used ----------------- None Achievements -------------- Packrat Short-term Sacrifices Challenges ------------ None Game ------ Seed DeliveryDynamicCarapace Manual? 0 Play Time 00:45:46 Cumulative 106.3 hours Start 2025.12.01 @ 22:21:37 End 2025.12.01 @ 23:05:34 Sessions 1 Manual Loads 0 Difficulty Rogue Special Mode None Game No. 155 Rogue 155 Adventurer 0 Explorer 0 Win Type - Total 1 Types 1/0/0/0/0/0/0/0/0/0 Lore% 59 Gallery% 54 Achievement% 41 Wizard Run 0 Options --------- Layout 2 ASCII 0 Keyboard 0 Movement Mouse Keybinds 0 Fullscreen 1 Font 16/SmallcapsGlow Map View 25x24 Zoom Use 99% Tactical HUD 1 Map Filters NONE Filters NONE Steam SD RUN: 90ac2bad-e6c0-4ec4-a537-78aded846352